[Event "Cellavision Cup 2018"]
[Site "Lund"]
[Date "2018.08.04"]
[Round "6"]
[White "Sumets, Andrey"]
[Black "Lindberg, Bengt"]
[Result "1-0"]
[ECO "D38"]
[WhiteElo "2575"]
[BlackElo "2416"]
[Annotator "ChessBase"]
[PlyCount "81"]
[EventDate "2018.08.03"]
[EventType "swiss"]
[EventCountry "SWE"]
[SourceTitle "playchess.com"]
[Source "ChessBase"]
[SourceQuality "1"]
[TimeControl "5400+30"]

1. d4 {[%emt 0:03:40]} Nf6 {[%emt 0:00:00]} 2. c4 {[%emt 0:00:03]} e6 {[%emt 0:00:00]} 3. Nf3 {[%emt 0:00:03]} d5 {[%emt 0:00:00]} 4. Nc3 {[%emt 0:00:38]} Bb4 {[%emt 0:00:08]} 5. Qa4+ {[%emt 0:03:53]} Nc6 {[%emt 0:00:07]} 6. e3 {[%emt 0:01:37]} O-O {[%emt 0:01:26]} 7. Bd2 {[%emt 0:00:04]} Re8 {[%emt 0:02:48]} 8. Qc2 {[%emt 0:00:24]} e5 {[%emt 0:16:15]} 9. dxe5 {[%emt 0:00:30]} Nxe5 {[%emt 0:00:14]} 10. cxd5 {[%emt 0:01:24]} Bg4 {[%emt 0:08:10]} 11. Nxe5 {[%emt 0:05:08]} Rxe5 {[%emt 0:00:07]} 12. Bc4 {[%emt 0:00:35]} Qe7 {[%emt 0:04:54]} 13. h3 {[%emt 0:03:10]} Bf5 {[%emt 0:08:40]} 14. Qb3 {[%emt 0:14:45]} c6 {[%emt 0:00:42]} 15. dxc6 {[%emt 0:02:51]} bxc6 {[%emt 0:00:02]} 16. O-O {[%emt 0:02:52]} Rb8 {[%emt 0:03:30]} 17. Qd1 {[%emt 0:11:55]} Bxh3 {[%emt 0:06:14]} 18. gxh3 {[%emt 0:01:00]} Rg5+ {[%emt 0:00:08]} 19. Kh2 {[%emt 0:01:06]} Rd8 {[%emt 0:09:37]} 20. Qe2 {[%emt 0:04:54]} Ng4+ {[%emt 0:23:25]} 21. hxg4 {[%emt 0:03:09]} Rxd2 {[%emt 0:00:23]} 22. Qf3 {[%emt 0:01:27]} Rd6 {[%emt 0:13:15]} 23. Ne4 {[%emt 0:11:12]} Rh6+ {[%emt 0:00:04]} 24. Kg2 {[%emt 0:00:02]} Rxg4+ {[%emt 0:00:22]} 25. Qxg4 {[%emt 0:00:07]} Rg6 {[%emt 0:00:06]} 26. Qxg6 {[%emt 0:00:03]} hxg6 {[%emt 0:00:06]} 27. Ng3 {[%emt 0:02:15]} Bd6 {[%emt 0:00:23]} 28. b3 {[%emt 0:00:34]} g5 {[%emt 0:01:04]} 29. Rad1 {[%emt 0:00:53]} g6 {[%emt 0:00:16]} 30. Rd4 {[%emt 0:01:05]} Be5 {[%emt 0:01:59]} 31. Rd3 {[%emt 0:02:12]} Kg7 {[%emt 0:00:25]} 32. Rfd1 {[%emt 0:06:23]} Bxg3 {[%emt 0:00:10]} 33. fxg3 {[%emt 0:01:14]} Qe4+ {[%emt 0:00:18]} 34. Kh2 {[%emt 0:00:09]} Qf3 {[%emt 0:00:55]} 35. R1d2 {[%emt 0:01:43]} f5 {[%emt 0:00:32]} 36. a4 {[%emt 0:01:47]} Qh5+ {[%emt 0:00:39]} 37. Kg2 {[%emt 0:00:41]} g4 {[%emt 0:00:21]} 38. Kg1 {[%emt 0:00:41]} Qh3 {[%emt 0:00:27]} 39. e4 {[%emt 0:01:39]} fxe4 {[%emt 0:00:39]} 40. Rh2 {[%emt 0:00:44]} exd3 {[%emt 0:00:19]} 41. Rxh3 {[%emt 0:00:03]} 1-0

[Event "Cellavision Cup 2018"]
[Site "Lund"]
[Date "2018.08.04"]
[Round "6"]
[White "Urkedal, Frode Olav Olsen"]
[Black "Kristiansen, Jens"]
[Result "1-0"]
[ECO "E32"]
[WhiteElo "2537"]
[BlackElo "2366"]
[Annotator "ChessBase"]
[PlyCount "85"]
[EventDate "2018.08.03"]
[EventType "swiss"]
[EventCountry "SWE"]
[SourceTitle "playchess.com"]
[Source "ChessBase"]
[SourceQuality "1"]
[TimeControl "5400+30"]

1. d4 {[%emt 0:00:00]} Nf6 {[%emt 0:00:00]} 2. c4 {[%emt 0:00:00]} e6 {[%emt 0:00:00]} 3. Nc3 {[%emt 0:00:00]} Bb4 {[%emt 0:00:00]} 4. Qc2 {[%emt 0:00:04]} O-O {[%emt 0:00:10]} 5. Nf3 {[%emt 0:00:03]} c5 {[%emt 0:00:43]} 6. dxc5 {[%emt 0:00:15]} Na6 {[%emt 0:00:59]} 7. g3 {[%emt 0:00:57]} Nxc5 {[%emt 0:00:38]} 8. Bg2 {[%emt 0:00:05]} b6 {[%emt 0:03:24]} 9. O-O {[%emt 0:00:12]} Bb7 {[%emt 0:05:04]} 10. Nb5 {[%emt 0:00:49]} Nce4 {[%emt 0:01:42]} 11. Ng5 {[%emt 0:00:24]} d5 {[%emt 0:01:08]} 12. Nxe4 {[%emt 0:00:09]} Nxe4 {[%emt 0:01:30]} 13. cxd5 {[%emt 0:08:21]} exd5 {[%emt 0:00:30]} 14. Be3 {[%emt 0:00:21]} Qd7 {[%emt 0:12:10]} 15. Nd4 {[%emt 0:01:01]} Rac8 {[%emt 0:00:47]} 16. Qd3 {[%emt 0:00:35]} Bc5 {[%emt 0:01:12]} 17. Nb5 {[%emt 0:04:15]} Bc6 {[%emt 0:01:48]} 18. Nd4 {[%emt 0:01:00]} Bb7 {[%emt 0:00:40]} 19. Rfd1 {[%emt 0:01:37]} Rfe8 {[%emt 0:06:18]} 20. a3 {[%emt 0:06:18]} a5 {[%emt 0:03:19]} 21. Rac1 {[%emt 0:07:09]} h5 {[%emt 0:01:20]} 22. Rc2 {[%emt 0:09:38]} h4 {[%emt 0:02:24]} 23. Rdc1 {[%emt 0:06:21]} hxg3 {[%emt 0:04:27]} 24. hxg3 {[%emt 0:00:04]} a4 {[%emt 0:02:43]} 25. Rd1 {[%emt 0:11:21]} Qe7 {[%emt 0:02:34]} 26. Bxe4 {[%emt 0:07:43]} dxe4 {[%emt 0:00:52]} 27. Qb5 {[%emt 0:00:07]} Ra8 {[%emt 0:05:41]} 28. Nf5 {[%emt 0:03:11]} Qf6 {[%emt 0:07:15]} 29. Bxc5 {[%emt 0:04:25]} Qxf5 {[%emt 0:00:20]} 30. Qd7 {[%emt 0:00:05]} Qh5 {[%emt 0:12:45]} 31. Qxb7 {[%emt 0:01:14]} bxc5 {[%emt 0:00:11]} 32. Qd5 {[%emt 0:07:43]} Qg4 {[%emt 0:01:37]} 33. Kg2 {[%emt 0:06:17]} Rac8 {[%emt 0:01:58]} 34. Qc4 {[%emt 0:00:40]} Re6 {[%emt 0:02:44]} 35. Qxa4 {[%emt 0:04:04]} Qf5 {[%emt 0:04:08]} 36. Qd7 {[%emt 0:00:21]} Rce8 {[%emt 0:01:20]} 37. Rd5 {[%emt 0:00:20]} Qg6 {[%emt 0:01:06]} 38. Rdxc5 {[%emt 0:01:02]} e3 {[%emt 0:00:25]} 39. f3 {[%emt 0:01:44]} Qf6 {[%emt 0:00:40]} 40. Rc8 {[%emt 0:00:28]} Rxc8 {[%emt 0:00:10]} 41. Rxc8+ {[%emt 0:00:09]} Kh7 {[%emt 0:00:06]} 42. Qd3+ {[%emt 0:00:17]} g6 {[%emt 0:00:18]} 43. Qc3 {[%emt 0:00:05]} 1-0

[Event "Cellavision Cup 2018"]
[Site "Lund"]
[Date "2018.08.04"]
[Round "6"]
[White "Johansson, Linus"]
[Black "Kristensen, Kaare Hove"]
[Result "1/2-1/2"]
[ECO "A16"]
[WhiteElo "2457"]
[BlackElo "2342"]
[Annotator "ChessBase"]
[PlyCount "82"]
[EventDate "2018.08.03"]
[EventType "swiss"]
[EventCountry "SWE"]
[SourceTitle "playchess.com"]
[Source "ChessBase"]
[SourceQuality "1"]
[TimeControl "5400+30"]

1. c4 {[%emt 0:00:00]} Nf6 {[%emt 0:00:55]} 2. Nc3 {[%emt 0:00:00]} c5 {[%emt 0:01:36]} 3. Nf3 {[%emt 0:00:13]} e6 {[%emt 0:03:08]} 4. e4 {[%emt 0:00:53]} Nc6 {[%emt 0:03:41]} 5. Be2 {[%emt 0:00:05]} d5 {[%emt 0:01:24]} 6. cxd5 {[%emt 0:00:04]} exd5 {[%emt 0:00:10]} 7. e5 {[%emt 0:00:02]} Ne4 {[%emt 0:03:15]} 8. O-O {[%emt 0:03:35]} Be7 {[%emt 0:01:36]} 9. d4 {[%emt 0:07:55]} cxd4 {[%emt 0:06:44]} 10. Nb5 {[%emt 0:00:12]} O-O {[%emt 0:01:17]} 11. Nbxd4 {[%emt 0:00:04]} Bc5 {[%emt 0:08:05]} 12. Be3 {[%emt 0:01:44]} Qb6 {[%emt 0:05:54]} 13. Nxc6 {[%emt 0:00:17]} bxc6 {[%emt 0:01:11]} 14. Bxc5 {[%emt 0:00:06]} Qxc5 {[%emt 0:02:20]} 15. Rc1 {[%emt 0:00:11]} Qb6 {[%emt 0:00:14]} 16. Rc2 {[%emt 0:02:33]} Rd8 {[%emt 0:07:22]} 17. Bd3 {[%emt 0:03:24]} Ba6 {[%emt 0:02:00]} 18. Bxa6 {[%emt 0:03:19]} Qxa6 {[%emt 0:00:09]} 19. b4 {[%emt 0:00:03]} d4 {[%emt 0:07:05]} 20. Qc1 {[%emt 0:02:20]} d3 {[%emt 0:04:32]} 21. Rxc6 {[%emt 0:01:13]} Qxa2 {[%emt 0:00:10]} 22. e6 {[%emt 0:20:55]} d2 {[%emt 0:10:43]} 23. exf7+ {[%emt 0:00:11]} Kxf7 {[%emt 0:05:32]} 24. Qd1 {[%emt 0:03:21]} Kg8 {[%emt 0:03:16]} 25. h4 {[%emt 0:06:55]} Rac8 {[%emt 0:08:38]} 26. Rxc8 {[%emt 0:04:04]} Rxc8 {[%emt 0:00:06]} 27. Qe2 {[%emt 0:00:05]} Rc1 {[%emt 0:04:34]} 28. Qxe4 {[%emt 0:02:49]} Rxf1+ {[%emt 0:00:27]} 29. Kh2 {[%emt 0:00:04]} Kh8 {[%emt 0:02:13]} 30. Nxd2 {[%emt 0:05:41]} Rxf2 {[%emt 0:01:25]} 31. Nc4 {[%emt 0:00:04]} h6 {[%emt 0:03:08]} 32. Qe8+ {[%emt 0:06:28]} Kh7 {[%emt 0:00:02]} 33. Qe4+ {[%emt 0:00:07]} Kh8 {[%emt 0:00:02]} 34. Qe8+ {[%emt 0:00:06]} Kh7 {[%emt 0:00:06]} 35. Qe4+ {[%emt 0:00:04]} Kg8 {[%emt 0:00:12]} 36. Qe6+ {[%emt 0:01:48]} Rf7 {[%emt 0:00:20]} 37. h5 {[%emt 0:00:03]} Qb3 {[%emt 0:01:12]} 38. Qe8+ {[%emt 0:00:39]} Rf8 {[%emt 0:00:13]} 39. Qe6+ {[%emt 0:00:06]} Rf7 {[%emt 0:00:15]} 40. Qe8+ {[%emt 0:00:06]} Rf8 {[%emt 0:00:04]} 41. Qe6+ {[%emt 0:00:05]} Rf7 {[%emt 0:03:45]} 1/2-1/2

[Event "Cellavision Cup 2018"]
[Site "Lund"]
[Date "2018.08.04"]
[Round "6"]
[White "Himanshu, Sharma"]
[Black "Jogstad, Martin"]
[Result "1/2-1/2"]
[ECO "B48"]
[WhiteElo "2436"]
[BlackElo "2312"]
[Annotator "NA"]
[PlyCount "134"]
[EventDate "2018.08.03"]
[EventType "swiss"]
[EventCountry "SWE"]
[SourceTitle "playchess.com"]
[Source "ChessBase"]
[SourceQuality "1"]
[TimeControl "5400+30"]

1. e4 {[%emt 0:00:00]} c5 {[%emt 0:00:00]} 2. Nc3 {[%emt 0:00:06]} e6 {[%emt 0:00:07]} 3. Nf3 {[%emt 0:00:15]} Nc6 {[%emt 0:00:13]} 4. d4 {[%emt 0:00:06]} cxd4 {[%emt 0:00:10]} 5. Nxd4 {[%emt 0:00:05]} Qc7 {[%emt 0:00:15]} 6. Be3 {[%emt 0:00:56]} a6 {[%emt 0:00:14]} 7. Qd2 {[%emt 0:03:15]} Nf6 {[%emt 0:01:23]} 8. O-O-O {[%emt 0:00:28]} Be7 {[%emt 0:04:43]} 9. f3 {[%emt 0:04:07]} b5 {[%emt 0:02:09]} 10. g4 {[%emt 0:03:08]} Nxd4 {[%emt 0:01:17]} 11. Qxd4 {[%emt 0:03:11]} Bb7 {[%emt 0:02:21]} 12. Qb6 {[%emt 0:03:55]} Qxb6 {[%emt 0:04:58]} 13. Bxb6 {[%emt 0:00:02]} b4 {[%emt 0:03:30]} 14. Ne2 {[%emt 0:01:24]} Rc8 {[%emt 0:01:31]} 15. Bg2 {[%emt 0:00:45]} d5 {[%emt 0:01:04]} 16. e5 {[%emt 0:00:44]} Nd7 {[%emt 0:00:30]} 17. Bd4 {[%emt 0:00:06]} a5 {[%emt 0:01:20]} 18. f4 {[%emt 0:00:41]} Ba6 {[%emt 0:00:59]} 19. Ng3 {[%emt 0:00:31]} Bc5 {[%emt 0:01:18]} 20. Rhe1 {[%emt 0:06:09]} O-O {[%emt 0:04:29]} 21. Bf1 {[%emt 0:05:26]} Bxf1 {[%emt 0:00:36]} 22. Nxf1 {[%emt 0:00:05]} Bxd4 {[%emt 0:01:23]} 23. Rxd4 {[%emt 0:00:04]} Nc5 {[%emt 0:01:59]} 24. Kb1 {[%emt 0:06:26]} Rc7 {[%emt 0:02:58]} 25. Ng3 {[%emt 0:00:50]} Rfc8 {[%emt 0:14:40]} 26. h4 {[%emt 0:03:20]} Na4 {[%emt 0:10:29]} 27. Re2 {[%emt 0:01:07]} Nb6 {[%emt 0:07:20]} 28. b3 {[%emt 0:02:38]} Rc3 {[%emt 0:01:00]} 29. Rd3 {[%emt 0:00:08]} d4 {[%emt 0:08:38]} 30. Red2 {[%emt 0:00:29]} Rxd3 {[%emt 0:08:53]} 31. Rxd3 {[%emt 0:00:05]} Rc3 {[%emt 0:02:53]} 32. Ne2 {[%emt 0:01:06]} Rxd3 {[%emt 0:01:20]} 33. cxd3 {[%emt 0:00:04]} Nd5 {[%emt 0:00:06]} 34. Nxd4 {[%emt 0:14:46]} Nxf4 {[%emt 0:00:09]} 35. Kc2 {[%emt 0:00:03]} Nd5 {[%emt 0:00:36]} 36. Nc6 {[%emt 0:02:26]} h5 {[%emt 0:01:30]} 37. gxh5 {[%emt 0:05:02]} Kh7 {[%emt 0:00:37]} 38. Nd8 {[%emt 0:00:39]} Kh6 {[%emt 0:00:28]} 39. Nxf7+ {[%emt 0:00:13]} Kxh5 {[%emt 0:00:07]} 40. Nd8 {[%emt 0:00:13]} Nc7 {[%emt 0:03:48]} 41. Kd2 {[%emt 0:03:10]} Kxh4 {[%emt 0:00:05]} 42. Ke3 {[%emt 0:00:20]} g5 {[%emt 0:00:43]} 43. Kf2 {[%emt 0:00:16]} Kh3 {[%emt 0:02:55]} 44. Kg1 {[%emt 0:00:59]} g4 {[%emt 0:01:10]} 45. Nf7 {[%emt 0:03:46]} Kg3 {[%emt 0:01:31]} 46. d4 {[%emt 0:00:04]} Kf4 {[%emt 0:00:34]} 47. Kg2 {[%emt 0:00:38]} Ke4 {[%emt 0:02:33]} 48. Nd8 {[%emt 0:00:45]} Kxd4 {[%emt 0:00:48]} 49. Nc6+ {[%emt 0:00:04]} Ke4 {[%emt 0:01:20]} 50. Kg3 {[%emt 0:00:03]} Nd5 {[%emt 0:00:20]} 51. Kxg4 {[%emt 0:00:35]} Nc3 {[%emt 0:00:11]} 52. Kg5 {[%emt 0:01:21]} Nxa2 {[%emt 0:00:27]} 53. Kf6 {[%emt 0:00:03]} Kd5 {[%emt 0:01:17]} 54. Nxa5 {[%emt 0:01:04]} Nc3 {[%emt 0:00:17]} 55. Nc4 {[%emt 0:00:18]} Ne4+ {[%emt 0:00:05]} 56. Ke7 {[%emt 0:01:44]} Nc5 {[%emt 0:00:02]} 57. Kf6 {[%emt 0:00:25]} Nd7+ {[%emt 0:00:44]} 58. Ke7 {[%emt 0:00:16]} Nc5 {[%emt 0:00:03]} 59. Kf6 {[%emt 0:00:05]} Nxb3 {[%emt 0:01:37]} 60. Ne3+ {[%emt 0:00:10]} Kc5 {[%emt 0:00:39]} 61. Kxe6 {[%emt 0:00:44]} Nd4+ {[%emt 0:00:15]} 62. Kf6 {[%emt 0:00:23]} b3 {[%emt 0:00:08]} 63. Nd1 {[%emt 0:00:42]} Kd5 {[%emt 0:00:39]} 64. Ne3+ {[%emt 0:01:29]} Ke4 {[%emt 0:00:31]} 65. Nd1 {[%emt 0:00:22]} Kd5 {[%emt 0:00:28]} 66. Ne3+ {[%emt 0:00:04]} Kc5 {[%emt 0:00:25]} 67. Nd1 {[%emt 0:00:03]} Kd5 {[%emt 0:01:08]} 1/2-1/2

[Event "Cellavision Cup 2018"]
[Site "Lund"]
[Date "2018.08.04"]
[Round "6"]
[White "Strange, Mikkel"]
[Black "Hansen, Sune Berg"]
[Result "1/2-1/2"]
[ECO "B22"]
[WhiteElo "2370"]
[BlackElo "2589"]
[Annotator "ChessBase"]
[PlyCount "86"]
[EventDate "2018.08.03"]
[EventType "swiss"]
[EventCountry "SWE"]
[SourceTitle "playchess.com"]
[Source "ChessBase"]
[SourceQuality "1"]
[TimeControl "5400+30"]

1. e4 {[%emt 0:00:00]} c5 {[%emt 0:00:00]} 2. c3 {[%emt 0:00:00]} Nf6 {[%emt 0:00:00]} 3. e5 {[%emt 0:00:00]} Nd5 {[%emt 0:00:00]} 4. d4 {[%emt 0:00:00]} cxd4 {[%emt 0:00:33]} 5. cxd4 {[%emt 0:00:00]} d6 {[%emt 0:00:42]} 6. Nf3 {[%emt 0:00:01]} Nc6 {[%emt 0:01:03]} 7. Bc4 {[%emt 0:00:06]} dxe5 {[%emt 0:00:08]} 8. Nxe5 {[%emt 0:02:15]} e6 {[%emt 0:01:19]} 9. O-O {[%emt 0:05:28]} Be7 {[%emt 0:01:08]} 10. a3 {[%emt 0:10:38]} O-O {[%emt 0:01:23]} 11. Nxc6 {[%emt 0:02:25]} bxc6 {[%emt 0:00:07]} 12. Bd3 {[%emt 0:02:20]} g6 {[%emt 0:06:26]} 13. Nd2 {[%emt 0:11:54]} Nf4 {[%emt 0:05:59]} 14. Nf3 {[%emt 0:02:44]} Nxd3 {[%emt 0:00:52]} 15. Qxd3 {[%emt 0:00:07]} Qd5 {[%emt 0:07:01]} 16. Re1 {[%emt 0:05:09]} f6 {[%emt 0:03:30]} 17. Bd2 {[%emt 0:05:02]} a5 {[%emt 0:06:33]} 18. Rac1 {[%emt 0:00:45]} Bd6 {[%emt 0:09:28]} 19. Qe4 {[%emt 0:04:28]} Bd7 {[%emt 0:02:56]} 20. Bf4 {[%emt 0:04:23]} Qxe4 {[%emt 0:09:44]} 21. Rxe4 {[%emt 0:00:21]} Bxf4 {[%emt 0:16:02]} 22. Rxf4 {[%emt 0:00:30]} Rab8 {[%emt 0:00:06]} 23. Rc2 {[%emt 0:01:32]} Rb5 {[%emt 0:01:01]} 24. Rd2 {[%emt 0:08:18]} g5 {[%emt 0:02:37]} 25. Re4 {[%emt 0:00:33]} Rd8 {[%emt 0:01:26]} 26. h4 {[%emt 0:01:19]} h6 {[%emt 0:00:13]} 27. hxg5 {[%emt 0:01:01]} hxg5 {[%emt 0:01:17]} 28. Ne1 {[%emt 0:04:18]} Kf7 {[%emt 0:01:56]} 29. f4 {[%emt 0:01:36]} Bc8 {[%emt 0:06:10]} 30. fxg5 {[%emt 0:00:40]} Rxg5 {[%emt 0:00:14]} 31. Nf3 {[%emt 0:00:46]} Rgd5 {[%emt 0:02:50]} 32. Rf2 {[%emt 0:01:44]} Ke7 {[%emt 0:00:58]} 33. Rh4 {[%emt 0:00:23]} Rf8 {[%emt 0:00:35]} 34. Rh7+ {[%emt 0:00:14]} Rf7 {[%emt 0:01:26]} 35. Rxf7+ {[%emt 0:01:05]} Kxf7 {[%emt 0:00:05]} 36. Rc2 {[%emt 0:03:07]} Bb7 {[%emt 0:02:43]} 37. Kf2 {[%emt 0:02:09]} Ke7 {[%emt 0:00:38]} 38. Ke3 {[%emt 0:00:18]} Rb5 {[%emt 0:00:49]} 39. Nd2 {[%emt 0:01:53]} e5 {[%emt 0:00:45]} 40. dxe5 {[%emt 0:02:29]} Rxe5+ {[%emt 0:00:09]} 41. Kf2 {[%emt 0:00:58]} Rf5+ {[%emt 0:02:14]} 42. Nf3 {[%emt 0:00:55]} Kd6 {[%emt 0:00:48]} 43. Ke3 {[%emt 0:00:46]} c5 {[%emt 0:01:04] Ke4 Ke5+} 1/2-1/2

[Event "Cellavision Cup 2018"]
[Site "Lund"]
[Date "2018.08.04"]
[Round "6"]
[White "Seo, Jung Min"]
[Black "Hillarp Persson, Tiger"]
[Result "0-1"]
[ECO "A45"]
[WhiteElo "2356"]
[BlackElo "2542"]
[Annotator "ChessBase"]
[PlyCount "102"]
[EventDate "2018.08.03"]
[EventType "swiss"]
[EventCountry "SWE"]
[SourceTitle "playchess.com"]
[Source "ChessBase"]
[SourceQuality "1"]
[TimeControl "5400+30"]

1. d4 {[%emt 0:00:00]} Nf6 {[%emt 0:02:50]} 2. Bg5 {[%emt 0:00:53]} d5 {[%emt 0:03:03]} 3. Nd2 {[%emt 0:01:08]} a6 {[%emt 0:02:09]} 4. e3 {[%emt 0:06:28]} e6 {[%emt 0:04:26]} 5. Ngf3 {[%emt 0:03:58]} h6 {[%emt 0:01:52]} 6. Bh4 {[%emt 0:02:50]} Nbd7 {[%emt 0:03:20]} 7. Bd3 {[%emt 0:01:50]} c5 {[%emt 0:07:13]} 8. c3 {[%emt 0:02:01]} cxd4 {[%emt 0:01:50]} 9. cxd4 {[%emt 0:07:15]} Bd6 {[%emt 0:01:28]} 10. O-O {[%emt 0:01:33]} O-O {[%emt 0:01:39]} 11. Rc1 {[%emt 0:01:17]} b6 {[%emt 0:01:38]} 12. Qc2 {[%emt 0:10:09]} Bb7 {[%emt 0:00:56]} 13. Qb1 {[%emt 0:00:59]} Rc8 {[%emt 0:15:31]} 14. Rxc8 {[%emt 0:01:42]} Qxc8 {[%emt 0:00:44]} 15. Rc1 {[%emt 0:00:37]} Qb8 {[%emt 0:00:45]} 16. Bg3 {[%emt 0:04:42]} Bxg3 {[%emt 0:00:09]} 17. hxg3 {[%emt 0:00:06]} Rc8 {[%emt 0:01:31]} 18. Rxc8+ {[%emt 0:00:11]} Qxc8 {[%emt 0:00:11]} 19. Qc2 {[%emt 0:00:21]} Qxc2 {[%emt 0:02:52]} 20. Bxc2 {[%emt 0:00:04]} a5 {[%emt 0:00:37]} 21. Bd3 {[%emt 0:05:41]} Kf8 {[%emt 0:00:55]} 22. Kf1 {[%emt 0:00:10]} Ke7 {[%emt 0:00:07]} 23. Ke2 {[%emt 0:00:18]} Ne8 {[%emt 0:04:31]} 24. g4 {[%emt 0:02:38]} g5 {[%emt 0:00:15]} 25. Ne5 {[%emt 0:06:43]} Nb8 {[%emt 0:00:52]} 26. Nb1 {[%emt 0:02:10]} f6 {[%emt 0:01:43]} 27. Nf3 {[%emt 0:00:43]} Nd6 {[%emt 0:00:45]} 28. Nc3 {[%emt 0:01:41]} Bc6 {[%emt 0:02:26]} 29. a4 {[%emt 0:02:53]} Be8 {[%emt 0:02:14]} 30. Nb5 {[%emt 0:07:39]} Nc6 {[%emt 0:02:55]} 31. Nxd6 {[%emt 0:00:38]} Kxd6 {[%emt 0:00:08]} 32. Bb5 {[%emt 0:01:33]} Bd7 {[%emt 0:05:11]} 33. b3 {[%emt 0:02:01]} e5 {[%emt 0:02:34]} 34. Nh2 {[%emt 0:01:57]} exd4 {[%emt 0:14:10]} 35. Bxc6 {[%emt 0:00:23]} Kxc6 {[%emt 0:00:07]} 36. exd4 {[%emt 0:00:10]} b5 {[%emt 0:00:53]} 37. axb5+ Kxb5 {[%emt 0:00:10]} 38. Kd2 {[%emt 0:22:36]} Kb4 {[%emt 0:00:14]} 39. Kc2 {[%emt 0:00:00]} Bc8 {[%emt 0:00:12]} 40. Kb2 {[%emt 0:00:32]} Ba6 {[%emt 0:00:11]} 41. Kc2 {[%emt 0:00:44]} Be2 {[%emt 0:00:52]} 42. g3 {[%emt 0:00:37]} Ba6 {[%emt 0:00:55]} 43. Nf3 {[%emt 0:00:20]} Bc8 {[%emt 0:00:13]} 44. Nh2 {[%emt 0:00:24]} Bd7 {[%emt 0:00:24]} 45. Kb2 {[%emt 0:00:11]} Bb5 {[%emt 0:00:09]} 46. Kc2 {[%emt 0:00:14]} Be2 {[%emt 0:00:11]} 47. Kd2 {[%emt 0:00:58]} Kxb3 {[%emt 0:01:11]} 48. Kxe2 {[%emt 0:00:04]} a4 {[%emt 0:00:10]} 49. Nf3 {[%emt 0:00:08]} a3 {[%emt 0:00:07]} 50. Kd3 {[%emt 0:00:07]} a2 {[%emt 0:00:13]} 51. Nd2+ {[%emt 0:00:01]} Kb4 {[%emt 0:00:30]} 0-1

[Event "Cellavision Cup 2018"]
[Site "Lund"]
[Date "2018.08.04"]
[Round "6"]
[White "Bellon Lopez, Juan Manuel"]
[Black "Sivuk, Vitaly"]
[Result "0-1"]
[ECO "D00"]
[WhiteElo "2342"]
[BlackElo "2535"]
[Annotator "ChessBase"]
[PlyCount "110"]
[EventDate "2018.08.03"]
[EventType "swiss"]
[EventCountry "SWE"]
[SourceTitle "playchess.com"]
[Source "ChessBase"]
[SourceQuality "1"]
[TimeControl "5400+30"]

1. d4 {[%emt 0:00:00]} d5 {[%emt 0:00:13]} 2. Bf4 {[%emt 0:00:04]} c5 {[%emt 0:00:14]} 3. e3 {[%emt 0:00:16]} cxd4 {[%emt 0:00:18]} 4. exd4 {[%emt 0:00:08]} Nc6 {[%emt 0:00:07]} 5. c3 {[%emt 0:00:36]} Bf5 {[%emt 0:00:13]} 6. Nf3 {[%emt 0:01:43]} e6 {[%emt 0:00:58]} 7. Ne5 {[%emt 0:05:06]} Bd6 {[%emt 0:04:00]} 8. Nxc6 {[%emt 0:15:22]} bxc6 {[%emt 0:00:09]} 9. Bxd6 {[%emt 0:00:04]} Qxd6 {[%emt 0:00:07]} 10. Bd3 {[%emt 0:00:01]} Ne7 {[%emt 0:00:57]} 11. Bxf5 {[%emt 0:00:23]} Nxf5 {[%emt 0:00:07]} 12. Nd2 {[%emt 0:00:18]} O-O {[%emt 0:01:00]} 13. O-O {[%emt 0:02:55]} c5 {[%emt 0:01:45]} 14. dxc5 {[%emt 0:03:19]} Qxc5 {[%emt 0:00:30]} 15. Nb3 {[%emt 0:00:48]} Qb6 {[%emt 0:00:53]} 16. Rb1 {[%emt 0:03:23]} Rfc8 {[%emt 0:02:39]} 17. Qd3 {[%emt 0:02:11]} Rc4 {[%emt 0:02:24]} 18. Nd2 {[%emt 0:01:15]} Ra4 {[%emt 0:00:32]} 19. a3 {[%emt 0:00:12]} Rc8 {[%emt 0:02:17]} 20. Ra1 {[%emt 0:14:11]} h6 {[%emt 0:04:27]} 21. b3 {[%emt 0:01:00]} Rg4 {[%emt 0:01:28]} 22. Qh3 {[%emt 0:08:30]} Rf4 {[%emt 0:07:05]} 23. Qd3 {[%emt 0:05:26]} Nd6 {[%emt 0:01:17]} 24. g3 {[%emt 0:01:17]} Rf5 {[%emt 0:01:58]} 25. Rac1 {[%emt 0:06:06]} a5 {[%emt 0:09:11]} 26. a4 {[%emt 0:01:01]} Ne4 {[%emt 0:01:30]} 27. Nxe4 {[%emt 0:04:37]} dxe4 {[%emt 0:00:09]} 28. Qxe4 {[%emt 0:03:15]} Qxb3 {[%emt 0:00:20]} 29. Rfd1 {[%emt 0:01:57]} Rxc3 {[%emt 0:04:06]} 30. Rd8+ {[%emt 0:12:34]} Kh7 {[%emt 0:00:30]} 31. Rxc3 {[%emt 0:00:11]} Qxc3 {[%emt 0:00:06]} 32. Kg2 {[%emt 0:02:27]} Qb2 {[%emt 0:01:15]} 33. Qd4 {[%emt 0:01:19]} Qxd4 {[%emt 0:06:04]} 34. Rxd4 {[%emt 0:00:34]} g5 {[%emt 0:00:35]} 35. Rd7 {[%emt 0:00:33]} Kg6 {[%emt 0:00:28]} 36. Ra7 {[%emt 0:00:07]} g4 {[%emt 0:02:03]} 37. h3 {[%emt 0:01:24]} h5 {[%emt 0:00:56]} 38. hxg4 {[%emt 0:00:10]} hxg4 {[%emt 0:00:02]} 39. Ra8 {[%emt 0:00:22]} Rc5 {[%emt 0:01:36]} 40. Ra7 {[%emt 0:00:39]} f6 {[%emt 0:00:10]} 41. Ra6 {[%emt 0:00:45]} Kf5 {[%emt 0:00:19]} 42. Kf1 {[%emt 0:00:09]} Re5 {[%emt 0:01:46]} 43. Rc6 {[%emt 0:00:20]} Kg5 {[%emt 0:00:52]} 44. Rb6 {[%emt 0:01:44]} f5 {[%emt 0:02:16]} 45. Ra6 {[%emt 0:00:02]} Kf6 {[%emt 0:00:12]} 46. Kg2 {[%emt 0:00:11]} Rc5 {[%emt 0:00:51]} 47. f4 {[%emt 0:01:01]} gxf3+ {[%emt 0:01:44]} 48. Kxf3 {[%emt 0:00:01]} Ke5 {[%emt 0:00:13]} 49. Ke3 {[%emt 0:01:27]} Kd5 {[%emt 0:00:50]} 50. Kd3 {[%emt 0:00:12]} e5 {[%emt 0:01:40]} 51. Rb6 {[%emt 0:01:55]} e4+ {[%emt 0:01:33]} 52. Kd2 {[%emt 0:00:13]} Kd4 {[%emt 0:00:22]} 53. Ra6 {[%emt 0:00:47]} e3+ {[%emt 0:01:36]} 54. Ke2 {[%emt 0:01:21]} Rc2+ {[%emt 0:00:07]} 55. Kf1 {[%emt 0:00:40]} Ke5 0-1